bitfinex/quotes_BTCUSD_20260215
["timestamp","ask_amount","ask_price","bid_price","bid_amount"]
[1771152842916,0.0004,70517.0,70514.0,0.07090629]
[1771152843338,0.0004,70517.0,70515.0,0.07090678]
[1771152847308,0.00060934,70519.0,70508.0,0.0002]
[1771152847309,0.30741882,70522.0,70508.0,0.0002]
[1771152847310,0.09124,70530.0,70510.0,4e-05]
[1771152847490,0.00047337,70529.0,70525.0,0.07089653]
[1771152848514,0.00047337,70529.0,70520.0,0.07090097]
[1771152848515,0.07089586,70526.0,70520.0,0.07090097]
[1771152848939,0.07089586,70526.0,70521.0,0.07090052]
[1771152849132,0.07089586,70526.0,70520.0,0.07090097]
[1771152849340,0.07089715,70525.0,70520.0,0.07090097]
[1771152849753,0.07089964,70523.0,70514.0,0.02323879]
[1771152849955,0.07089953,70524.0,70518.0,0.07090338]
[1771152850346,0.09431791,70524.0,70519.0,0.07090226]
[1771152850944,0.07089901,70523.0,70518.0,0.07090338]
[1771152851189,0.07089901,70523.0,70512.0,0.07090911]
[1771152851190,0.07090597,70523.0,70512.0,0.07090911]
[1771152851395,0.07090482,70518.0,70512.0,0.07090911]
[1771152851587,0.07090482,70518.0,70513.0,0.07090858]
[1771152851790,0.07090388,70518.0,70511.0,0.07090911]
[1771152852046,0.09432341,70517.0,70512.0,0.07090934]
[1771152852291,0.09432341,70517.0,70513.0,0.07090867]
[1771152852292,0.02341838,70517.0,70513.0,0.07090867]
[1771152853232,0.02341838,70517.0,70510.0,0.07095027]
[1771152853431,0.02341838,70517.0,70510.0,4e-05]
[1771152853432,0.1711348,70517.0,70510.0,4e-05]
[1771152853637,0.07090954,70513.0,70510.0,4e-05]
[1771152854057,0.09461477,70514.0,70510.0,4e-05]
[1771152854712,0.1711348,70528.0,70513.0,0.07090891]
[1771152854921,0.0709039,70518.0,70513.0,0.07090891]
[1771152855503,0.07090625,70516.0,70511.0,0.07090923]
[1771152855841,0.07090439,70518.0,70513.0,0.07090879]
[1771152856221,0.60439731,70530.0,70514.0,0.07090776]
[1771152856400,0.07089932,70523.0,70517.0,0.07090443]
[1771152856674,0.07089989,70522.0,70517.0,0.07090443]
[1771152857184,0.07089932,70523.0,70517.0,0.07090443]
[1771152857306,0.07090283,70520.0,70515.0,0.0249616]
[1771152857506,0.07090283,70520.0,70514.0,0.07090728]
[1771152857732,0.07090283,70520.0,70515.0,0.0709066]
[1771152862017,0.07090283,70521.0,70516.0,0.07090574]
[1771152864346,0.07090189,70520.0,70516.0,0.07090574]
[1771152864551,0.07090283,70521.0,70516.0,0.07090574]
[1771152865157,0.07090423,70518.0,70513.0,0.0002]
[1771152865358,0.24204015,70517.0,70513.0,0.0002]
[1771152865758,0.07090535,70517.0,70513.0,0.0002]
[1771152866339,0.07090543,70518.0,70513.0,0.0002]
[1771152866511,0.07090543,70518.0,70513.0,0.07110855]
[1771152866715,0.07090543,70518.0,70513.0,0.0711088]
[1771152867136,0.07090537,70517.0,70515.0,0.0002]
[1771152867353,0.07090589,70516.0,70515.0,0.0002]
[1771152867966,0.02370621,70520.0,70515.0,0.0002]
[1771152867967,0.04258076,70706.0,70515.0,0.0002]
[1771152868143,0.07090589,70516.0,70515.0,0.0002]
[1771152868382,0.07090756,70515.0,70510.0,4e-05]
[1771152868941,0.07090756,70515.0,70510.0,0.07095167]
[1771152869128,0.0709076,70516.0,70510.0,0.07095167]
[1771152869266,0.02370621,70519.0,70512.0,0.07090979]
[1771152869480,0.07090559,70517.0,70512.0,0.07090979]
[1771152870238,0.07090614,70516.0,70511.0,0.07091031]
[1771152870658,0.07090614,70516.0,70510.0,0.03584417]
[1771152871461,0.07090614,70516.0,70511.0,0.07091029]
[1771152871990,0.07090614,70516.0,70510.0,0.03584417]
[1771152872201,0.07090556,70518.0,70510.0,0.07091192]
[1771152872404,0.07090556,70518.0,70513.0,0.07090851]
[1771152872763,0.07094355,70520.0,70514.0,0.07090787]
[1771152872889,0.07094355,70520.0,70515.0,0.07090642]
[1771152873094,0.07094355,70520.0,70514.0,0.07090787]
[1771152873095,0.07090302,70519.0,70514.0,0.07090787]
[1771152873902,0.07094355,70520.0,70515.0,0.07090669]
[1771152874098,0.07090321,70519.0,70514.0,0.07090787]
[1771152875830,0.07134355,70520.0,70515.0,0.0709064]
[1771152877354,0.07090326,70519.0,70514.0,0.07090787]
[1771152880312,0.07090326,70519.0,70515.0,0.07090687]
[1771152880970,0.07090326,70519.0,70514.0,0.07090787]
[1771152881129,0.07090326,70519.0,70506.0,0.07455457]
[1771152881364,0.07090326,70519.0,70513.0,0.07090835]
[1771152883502,0.07090326,70519.0,70513.0,0.07110835]
[1771152883673,0.07090326,70519.0,70510.0,0.28364671]
[1771152883872,0.07090326,70519.0,70513.0,0.07090866]
[1771152885397,0.07090408,70518.0,70512.0,0.07090976]
[1771152887970,0.07090408,70518.0,70513.0,0.0709088]
[1771152890256,0.07130326,70519.0,70513.0,0.0709088]
[1771152890700,0.0004,70519.0,70514.0,0.07090727]
[1771152891146,0.0004,70519.0,70513.0,0.07090727]
[1771152891329,0.07130337,70519.0,70513.0,0.07090727]
[1771152893073,0.07090424,70518.0,70513.0,0.07090727]
[1771152894516,0.09381267,70518.0,70513.0,0.07090727]
[1771152894727,0.07090648,70516.0,70511.0,0.0002]
[1771152895152,0.07090648,70516.0,70511.0,0.07111087]
[1771152895932,0.07090731,70515.0,70511.0,0.0002]
[1771152896161,0.0709085,70514.0,70511.0,0.0002]
[1771152896364,0.02290843,70514.0,70511.0,0.0002]
[1771152896783,0.16215105,70547.0,70512.0,0.12597545]
[1771152896978,0.16215105,70547.0,70511.0,0.0002]
[1771152896979,0.23310571,70547.0,70530.0,0.60387088]
[1771152897333,0.07087617,70546.0,70540.0,4e-05]
[1771152897522,0.23290225,70544.0,70540.0,4e-05]
[1771152897888,0.16202445,70544.0,70540.0,4e-05]
[1771152898672,0.07087418,70548.0,70541.0,0.07088076]
[1771152898875,0.16202445,70551.0,70541.0,0.07088076]
[1771152898876,0.23294765,70549.0,70542.0,0.07087941]
[1771152899284,0.07087373,70548.0,70542.0,0.07087941]
[1771152899488,0.07087519,70547.0,70540.0,4e-05]
[1771152899891,0.07087519,70547.0,70540.0,0.07092173]
[1771152900099,0.23289998,70548.0,70541.0,0.07088049]
[1771152901637,0.07087504,70547.0,70540.0,0.07092173]
[1771152902326,0.07087504,70547.0,70541.0,0.07088052]
[1771152902531,0.07087553,70548.0,70541.0,0.07088052]
[1771152903562,0.16202445,70547.0,70540.0,4e-05]
[1771152903784,0.2329026,70544.0,70540.0,4e-05]
[1771152904320,0.2329026,70544.0,70531.0,0.02376223]
[1771152904321,0.16202445,70544.0,70530.0,4e-05]
[1771152904530,0.02290843,70539.0,70526.0,0.07089549]
[1771152904734,0.02290843,70532.0,70526.0,0.07089549]
[1771152904981,0.16202445,70531.0,70526.0,0.07089549]
[1771152905194,0.07088932,70533.0,70527.0,0.07089453]
[1771152905419,0.0708888,70534.0,70528.0,0.07109656]
[1771152905617,0.07088921,70533.0,70528.0,0.0002028]
[1771152905958,0.07088935,70533.0,70528.0,0.0002028]
[1771152906185,0.0708888,70534.0,70528.0,0.0002028]
[1771152906396,0.07088892,70533.0,70528.0,0.0002028]
[1771152906600,0.0708888,70534.0,70528.0,0.0002028]
[1771152906987,0.0708888,70534.0,70528.0,0.07109649]
[1771152907219,0.01050333,70533.0,70528.0,0.07109649]
[1771152907807,0.01050333,70533.0,70528.0,0.0002028]
[1771152908214,0.01050333,70533.0,70528.0,0.07109661]
[1771152908594,0.01050333,70533.0,70528.0,0.0002028]
[1771152909022,0.01050333,70533.0,70528.0,0.07109627]
[1771152912786,0.08139235,70533.0,70528.0,0.07109627]
[1771152913010,0.01090333,70533.0,70528.0,0.07109627]
[1771152914048,0.01090333,70533.0,70513.0,0.42564921]
[1771152914049,0.07089185,70530.0,70520.0,4e-05]
[1771152914184,0.07089298,70529.0,70523.0,0.07089808]
[1771152914389,0.07089326,70529.0,70523.0,0.07089808]
[1771152914964,0.24163901,70529.0,70524.0,0.07089778]
[1771152915167,0.17074575,70529.0,70524.0,0.07089778]
[1771152915847,0.24163883,70529.0,70524.0,0.07089778]
[1771152916191,0.17074575,70529.0,70524.0,0.07089778]
[1771152916856,0.24163861,70529.0,70524.0,0.07089778]
[1771152917264,0.01050333,70528.0,70523.0,0.07089808]
[1771152917497,0.01050333,70528.0,70524.0,0.0708975]
[1771152917761,0.01050333,70528.0,70523.0,0.07089808]
[1771152917959,0.01050333,70528.0,70522.0,0.07089813]
[1771152917960,0.08139735,70528.0,70522.0,0.07094313]
[1771152918189,0.24164082,70527.0,70522.0,0.07094313]
[1771152918375,0.24164082,70527.0,70522.0,4.5e-05]
[1771152918577,0.24164082,70527.0,70522.0,0.07094478]
[1771152920222,0.0708961,70526.0,70522.0,4.5e-05]
[1771152920613,0.24164082,70527.0,70522.0,4.5e-05]
[1771152920761,0.24164082,70527.0,70524.0,0.0002]
[1771152921202,0.01050333,70526.0,70524.0,0.07109735]
[1771152921569,0.01050333,70526.0,70525.0,0.07089684]
[1771152921983,0.01050333,70526.0,70524.0,0.0002]
[1771152922458,0.01050333,70526.0,70524.0,0.0710976]
[1771152922641,0.01050333,70526.0,70524.0,0.0002]
[1771152923359,0.01050333,70526.0,70524.0,0.07109774]
[1771152925333,0.01050333,70526.0,70525.0,0.07089684]
[1771152925532,0.01050333,70526.0,70524.0,0.07109774]
[1771152926163,0.01050333,70526.0,70525.0,0.07089684]
[1771152927300,0.01050333,70526.0,70524.0,0.0002]
[1771152927832,0.01050333,70526.0,70524.0,0.07109773]
[1771152928435,0.01050333,70526.0,70524.0,0.0002]
[1771152931936,0.08139933,70526.0,70524.0,0.0002]
[1771152932330,0.01050333,70526.0,70524.0,0.0002]
[1771152936170,0.0708949,70527.0,70524.0,0.0002]
[1771152936983,0.0708949,70527.0,70522.0,0.04035914]
[1771152938125,0.01050333,70526.0,70522.0,0.04035914]
[1771152939510,0.01050333,70526.0,70520.0,0.07101509]
[1771152939718,0.07090543,70517.0,70514.0,0.0002]
[1771152939924,0.07086543,70517.0,70514.0,0.0002]
[1771152940128,0.07090388,70518.0,70514.0,0.0002]
[1771152940540,0.24164963,70518.0,70514.0,0.0002]
[1771152940863,0.17074575,70518.0,70514.0,0.0002]
[1771152941064,0.16074575,70518.0,70514.0,0.0002]
[1771152941317,0.07090357,70520.0,70515.0,0.0709064]
[1771152941723,0.07090357,70520.0,70514.0,0.07110741]
[1771152941724,0.33968,70521.0,70516.0,0.07090589]
[1771152941924,0.33968,70521.0,70518.0,0.07090336]
[1771152942494,0.33968,70521.0,70519.0,0.07090253]
[1771152942699,0.01050333,70520.0,70519.0,0.07090253]
[1771152943913,0.01050333,70520.0,70517.0,0.07090432]
[1771152944842,0.01050333,70520.0,70518.0,0.07090379]
[1771152945965,0.01050333,70520.0,70519.0,0.0002]
[1771152946338,0.01050333,70520.0,70519.0,5.037e-05]
[1771152946815,0.08140575,70520.0,70514.0,0.0002]
[1771152946985,0.07090287,70519.0,70514.0,0.0002]
[1771152947199,0.07090413,70518.0,70514.0,0.0002]
[1771152947407,0.07090643,70516.0,70514.0,0.0002]
[1771152947642,0.07090661,70517.0,70514.0,0.0002]
[1771152948028,0.16394513,70516.0,70513.0,0.0002]
[1771152948594,0.07090661,70517.0,70513.0,0.0002]
[1771152948953,0.23485174,70517.0,70513.0,0.0002]
[1771152949280,0.30726583,70520.0,70511.0,0.07111048]
[1771152949281,0.0236574,70520.0,70511.0,0.0002]
[1771152949470,0.16394513,70514.0,70511.0,0.00032924]
[1771152949689,0.16394513,70514.0,70504.0,0.0002]
[1771152949883,0.16394513,70503.0,70500.0,0.00024]
[1771152950096,0.57457736,70510.0,70503.0,0.07091896]
[1771152950245,0.5747066,70510.0,70504.0,0.07091753]
[1771152950434,0.5747066,70510.0,70503.0,0.07091896]
[1771152950895,0.07091386,70509.0,70503.0,0.07091896]
[1771152951121,0.07091426,70508.0,70503.0,0.07091896]
[1771152951250,0.23485939,70508.0,70503.0,0.07091896]
[1771152952237,0.00012924,70510.0,70509.0,0.08481116]
[1771152952446,0.07090529,70517.0,70509.0,0.02440156]
[1771152952618,0.07090529,70517.0,70506.0,0.07091544]
[1771152952619,0.07091057,70512.0,70506.0,0.07091544]
[1771152952837,0.07090781,70515.0,70509.0,0.07076293]
[1771152953140,0.07090824,70514.0,70509.0,0.07076293]
[1771152953920,0.07090618,70516.0,70511.0,0.07091053]
[1771152954538,0.07090756,70515.0,70510.0,0.07091174]
[1771152954758,0.07090558,70517.0,70512.0,0.07090987]
[1771152954920,0.2836513,70520.0,70513.0,0.07090832]
[1771152954921,4e-05,70520.0,70513.0,0.07090832]
[1771152955119,0.0709041,70518.0,70513.0,0.07090832]
[1771152955550,0.07090509,70517.0,70512.0,0.07090802]
[1771152956362,0.07090509,70517.0,70512.0,0.06971665]
[1771152956600,0.28364801,70520.0,70509.0,0.28365127]
[1771152956601,4e-05,70520.0,70509.0,0.02440156]
[1771152956738,0.34012,70528.0,70512.0,0.02440156]
[1771152956950,0.34012,70528.0,70522.0,0.07089952]
[1771152956951,0.07089521,70527.0,70522.0,0.07089952]
[1771152957152,0.07089521,70527.0,70521.0,0.07090072]
[1771152957351,0.07129627,70526.0,70521.0,0.07090072]
[1771152957614,0.07089697,70525.0,70520.0,0.07090022]
[1771152957792,0.07089786,70524.0,70519.0,0.07090128]
[1771152958208,0.07090508,70517.0,70515.0,4.5e-05]
[1771152958407,0.07090931,70513.0,70510.0,4e-05]
[1771152958812,0.07091288,70510.0,70505.0,0.07091656]
[1771152959012,0.23485801,70510.0,70505.0,0.07091656]
[1771152959362,0.23485721,70510.0,70505.0,0.07091656]
[1771152959572,0.07091401,70508.0,70503.0,0.0002]
[1771152959746,0.07091293,70509.0,70503.0,0.0002]
[1771152959945,0.23485938,70508.0,70503.0,0.07111842]
[1771152961322,0.07091425,70508.0,70503.0,0.07111842]
[1771152962324,0.07091517,70507.0,70503.0,0.0002]
[1771152962661,0.07091517,70507.0,70503.0,5.043e-05]
[1771152962856,0.23485938,70508.0,70503.0,0.07096922]
[1771152963268,0.23486013,70507.0,70503.0,5.043e-05]
[1771152963471,0.070915,70507.0,70503.0,5.043e-05]
[1771152963685,0.070915,70507.0,70502.0,0.07067078]
[1771152963884,0.070915,70507.0,70502.0,0.07052123]
[1771152964516,0.23486013,70507.0,70502.0,0.07052123]
[1771152964715,0.070915,70507.0,70502.0,0.07052123]
[1771152964924,0.16394513,70506.0,70502.0,0.07052123]
[1771152965211,0.16394513,70506.0,70502.0,0.0709199]
[1771152967083,0.18760253,70511.0,70501.0,0.07092097]
[1771152967361,9.172e-05,70511.0,70501.0,0.07092097]
[1771152967595,0.07100275,70511.0,70501.0,0.02440156]
[1771152967751,0.07091248,70510.0,70505.0,0.07091664]
[1771152968113,0.07131248,70510.0,70505.0,0.07091664]
[1771152968717,0.07091318,70509.0,70504.0,0.07091779]
[1771152968886,0.07091293,70509.0,70502.0,0.07111965]
[1771152969087,0.23485806,70509.0,70503.0,0.07091896]
[1771152969290,0.16394513,70506.0,70502.0,0.07111965]
[1771152969540,0.18760253,70506.0,70502.0,0.0709196]
[1771152969711,0.18760253,70506.0,70502.0,0.07077006]
[1771152969922,0.18760253,70506.0,70501.0,0.07091935]
[1771152970120,0.16394513,70506.0,70502.0,0.07091945]
[1771152970315,0.23486117,70506.0,70501.0,0.07091935]
[1771152970654,0.16394513,70506.0,70502.0,0.07091969]
[1771152971189,0.16394513,70506.0,70501.0,0.07092079]
[1771152971391,0.07091695,70505.0,70500.0,0.00024]
[1771152971591,0.07091858,70504.0,70500.0,0.00024]
[1771152971905,0.16394513,70503.0,70500.0,0.00024]
[1771152972101,0.16394513,70501.0,70497.0,0.0002]
[1771152972301,0.07092171,70501.0,70497.0,0.0002]
[1771152972506,0.23486684,70501.0,70497.0,5.049e-05]
[1771152972736,0.23486724,70500.0,70497.0,5.049e-05]
[1771152972898,0.16394513,70500.0,70497.0,5.049e-05]
[1771152973322,0.16394513,70500.0,70496.0,0.0711256]
[1771152973549,0.25744674,70500.0,70496.0,0.0002]
[1771152973920,0.16660996,70499.0,70496.0,0.0002]
[1771152974172,0.07092437,70498.0,70496.0,0.0002]
[1771152974367,0.07088437,70498.0,70496.0,0.0002]
[1771152974555,0.09350269,70499.0,70496.0,0.0002]
[1771152974761,0.16660996,70498.0,70496.0,0.0002]
[1771152975785,0.16660996,70496.0,70493.0,0.07092849]
[1771152975984,0.14988429,70496.0,70493.0,0.07077898]
[1771152977121,0.07092411,70498.0,70493.0,0.07077898]
[1771152977345,0.23753407,70498.0,70493.0,0.07077898]
[1771152977566,0.02257946,70499.0,70494.0,0.0709274]
[1771152977771,0.02257946,70499.0,70495.0,0.07092668]
[1771152978196,0.26011241,70499.0,70495.0,0.07092668]
[1771152979366,0.07092155,70501.0,70496.0,0.07092573]
[1771152979932,0.07092155,70501.0,70496.0,0.07097073]
[1771152980079,0.07092155,70501.0,70496.0,4.5e-05]
[1771152980643,0.07092155,70501.0,70496.0,0.07097045]
[1771152981716,0.0709223,70500.0,70496.0,4.5e-05]
[1771152982331,0.0709223,70500.0,70496.0,0.000245]
[1771152983012,0.07092362,70499.0,70496.0,0.000245]
[1771152983648,0.0709223,70500.0,70496.0,0.000245]
[1771152984631,0.07092165,70502.0,70496.0,0.07117067]
[1771152985109,0.07092141,70501.0,70495.0,0.04360842]
[1771152985319,0.07092141,70501.0,70496.0,0.07092542]
[1771152987268,0.07092141,70501.0,70497.0,0.09383343]
[1771152987445,0.07092141,70501.0,70496.0,0.07092542]
[1771152988878,0.07092104,70501.0,70497.0,0.07092454]
[1771152989272,0.07092165,70502.0,70497.0,0.07092454]
[1771152990172,0.07092132,70501.0,70496.0,0.07112542]
[1771152990376,0.07092207,70500.0,70496.0,0.07112542]
[1771152990578,0.07092207,70500.0,70496.0,0.0709759]
[1771152991371,0.07092132,70501.0,70496.0,0.0709759]
[1771152992258,0.07092132,70501.0,70496.0,0.07082638]
[1771152992881,0.23753128,70501.0,70496.0,0.07082638]
[1771152993324,0.07092221,70500.0,70496.0,0.0002]
[1771152993746,0.23753217,70500.0,70496.0,0.0002]
[1771152993896,0.07092301,70499.0,70496.0,0.0002]
[1771152998626,0.07092301,70499.0,70494.0,0.07092646]
[1771152999418,0.16660996,70498.0,70493.0,0.07092732]
[1771152999744,0.2375349,70498.0,70493.0,0.07092732]
[1771153001079,0.07092567,70497.0,70492.0,0.07092845]
[1771153001535,0.07093048,70492.0,70490.0,0.0002002]
[1771153001972,0.07093048,70492.0,70488.0,0.0002]
[1771153001973,0.07093104,70491.0,70488.0,0.0002]
[1771153002157,0.07093233,70490.0,70488.0,0.0002]
[1771153002539,0.16660996,70496.0,70488.0,0.0002]
[1771153002744,0.07093104,70491.0,70488.0,0.0002]
[1771153003268,0.07092912,70493.0,70488.0,0.0002]
[1771153003646,0.07092912,70493.0,70488.0,0.0711336]
[1771153004050,0.07093044,70492.0,70488.0,0.0002]
[1771153005370,0.16523963,70495.0,70487.0,0.0002]
[1771153005569,0.07093274,70490.0,70487.0,5.046e-05]
[1771153005935,0.07093362,70489.0,70485.0,0.0002]
[1771153007076,0.07093362,70489.0,70485.0,0.00063155]
[1771153007077,0.07093415,70488.0,70485.0,0.00063155]
[1771153009476,0.07093362,70489.0,70485.0,0.00063155]
[1771153010104,0.0709341,70488.0,70485.0,0.00063155]
[1771153010232,0.07093551,70487.0,70485.0,0.00063155]
[1771153012652,0.07093551,70487.0,70485.0,0.00048201]
[1771153013203,0.0709341,70488.0,70485.0,0.00044201]
[1771153015059,0.0709341,70488.0,70485.0,0.14964894]
[1771153015616,0.07093518,70487.0,70485.0,0.14964894]
[1771153015813,0.07093607,70486.0,70485.0,0.00044201]
[1771153016020,0.07093518,70487.0,70485.0,0.00044201]
[1771153017021,0.07093607,70486.0,70485.0,0.00044201]
[1771153017255,0.07093518,70487.0,70485.0,0.00044201]
[1771153017622,0.07093607,70486.0,70485.0,0.00044201]
[1771153018010,0.07093607,70486.0,70480.0,0.2201473]
[1771153018011,0.07094211,70480.0,70479.0,4.5e-05]
[1771153018219,0.07094119,70481.0,70479.0,7.345e-05]
[1771153018970,0.07094211,70480.0,70479.0,7.345e-05]
[1771153020306,0.07094119,70481.0,70479.0,7.345e-05]
[1771153020667,0.0004,70488.0,70476.0,0.22019795]
[1771153020668,0.16523963,70483.0,70476.0,4.5e-05]
[1771153020876,0.07094513,70477.0,70476.0,4.5e-05]
[1771153021116,0.07094513,70477.0,70474.0,0.0001423]
[1771153021117,0.07094714,70475.0,70474.0,0.0001423]
[1771153021537,0.07094815,70474.0,70473.0,4.5e-05]
[1771153021908,1e-08,70472.0,70470.0,4e-05]
[1771153022667,1e-08,70472.0,70468.0,0.07099867]
[1771153022668,1e-08,70472.0,70469.0,0.14920693]
[1771153022844,1e-08,70472.0,70470.0,0.14920693]
[1771153023237,1e-08,70472.0,70470.0,0.14905762]
[1771153025330,0.07095117,70471.0,70470.0,0.14905762]
[1771153027034,0.07095076,70472.0,70470.0,0.14905762]
[1771153027245,0.07095117,70471.0,70470.0,0.14905762]
[1771153027436,0.07095117,70471.0,70470.0,0.14925762]
[1771153029228,0.07095076,70472.0,70470.0,0.14925762]
[1771153029453,0.07094513,70477.0,70470.0,0.22020926]
[1771153029684,0.07094788,70476.0,70471.0,0.14913227]
[1771153030014,0.16523963,70490.0,70471.0,0.14913227]
[1771153030151,0.0709402,70482.0,70478.0,0.14913227]
[1771153030359,0.07093961,70483.0,70479.0,0.14913227]
[1771153030575,0.07094011,70482.0,70479.0,0.14913227]
[1771153030765,0.07093961,70483.0,70479.0,0.14913227]
[1771153032537,0.07094025,70482.0,70477.0,0.22007712]
[1771153032735,0.07093607,70486.0,70477.0,0.14913227]
[1771153032940,0.07094266,70480.0,70477.0,0.14913227]
[1771153034718,0.07094266,70481.0,70477.0,0.14913227]
[1771153035260,0.0709422,70480.0,70477.0,0.14913227]
[1771153035640,0.07094266,70481.0,70477.0,0.14913227]
[1771153035835,0.07094214,70480.0,70477.0,0.14913227]
[1771153036391,0.07094214,70480.0,70476.0,0.07094604]
[1771153036540,0.07134214,70480.0,70475.0,0.0709468]
[1771153036743,0.15520762,70479.0,70470.0,0.0002]
[1771153036954,0.07095117,70471.0,70470.0,0.0002]
[1771153037115,0.0709506,70472.0,70470.0,0.0002]
[1771153037762,0.07095117,70471.0,70470.0,0.0002]
[1771153042664,0.0709506,70472.0,70452.0,0.49254068]
[1771153042665,0.15520762,70472.0,70452.0,0.28388058]
[1771153042801,0.07096305,70460.0,70456.0,0.14913227]
[1771153044317,0.07096135,70461.0,70456.0,0.07096599]
[1771153044520,0.07096233,70460.0,70457.0,0.14913227]
[1771153045491,0.07096135,70461.0,70457.0,0.14913227]
[1771153046254,0.07096135,70461.0,70457.0,0.02910631]
[1771153050424,0.07096228,70460.0,70457.0,0.02910631]
[1771153050604,0.07096135,70461.0,70457.0,0.02910631]
[1771153053704,0.07096135,70461.0,70457.0,0.02930631]
[1771153054474,0.07096095,70463.0,70457.0,0.10027114]
[1771153054678,0.07096041,70462.0,70457.0,0.10027114]
[1771153055807,0.07096041,70462.0,70458.0,0.16008342]
[1771153056155,0.07096041,70462.0,70458.0,0.08911929]
[1771153056356,0.07096041,70462.0,70458.0,0.16008352]
[1771153056808,0.07096095,70463.0,70458.0,0.16008352]
[1771153057210,0.07096043,70462.0,70458.0,0.16008352]
[1771153058086,0.07096043,70462.0,70458.0,0.08911929]
[1771153058270,4e-05,70460.0,70458.0,0.08907929]
[1771153059709,4e-05,70460.0,70459.0,0.08909929]
[1771153062107,4e-05,70460.0,70459.0,0.08929929]
[1771153062565,4e-05,70470.0,70460.0,0.08909929]
[1771153062749,4e-05,70470.0,70467.0,0.08909929]
[1771153063364,4e-05,70470.0,70467.0,0.07095458]
[1771153063563,4e-05,70470.0,70468.0,0.08909929]
[1771153063953,4e-05,70470.0,70468.0,0.16005339]
[1771153064838,4e-05,70470.0,70468.0,0.08909929]
[1771153065045,4e-05,70470.0,70468.0,0.16005336]
[1771153066455,4e-05,70470.0,70468.0,0.08909929]
[1771153066648,4e-05,70470.0,70468.0,0.16005287]
[1771153067610,4e-05,70470.0,70468.0,0.08909929]
[1771153067808,4e-05,70470.0,70467.0,0.07095458]
[1771153068193,4e-05,70470.0,70460.0,0.08909929]
[1771153068403,0.07099299,70470.0,70465.0,0.07095685]
[1771153069685,0.07099299,70470.0,70466.0,0.07095616]
[1771153069887,4e-05,70470.0,70466.0,0.07095616]
[1771153070801,0.00044,70470.0,70466.0,0.07095616]
[1771153072536,0.07139238,70470.0,70466.0,0.07095616]
[1771153073193,0.00044,70470.0,70469.0,0.07095318]
[1771153073541,0.07094632,70476.0,70471.0,0.08909929]
[1771153074143,0.07094825,70474.0,70470.0,0.07095188]
[1771153075116,0.07094825,70474.0,70469.0,0.16005089]
[1771153076400,0.07094825,70474.0,70470.0,0.07095211]
[1771153076923,0.07094558,70477.0,70472.0,0.08909929]
[1771153077364,0.07094666,70476.0,70472.0,0.08909929]
[1771153078307,0.0004,70474.0,70472.0,0.08909929]
[1771153080714,0.0004,70479.0,70472.0,0.08909929]
[1771153080932,0.0004,70479.0,70475.0,0.08909929]
[1771153081230,0.0004,70479.0,70477.0,0.07094511]
[1771153081756,0.0004,70479.0,70476.0,0.07094578]
[1771153082568,0.0004,70479.0,70477.0,0.08909929]
[1771153082787,0.0004,70479.0,70475.0,0.07094678]
[1771153083543,0.07094559,70477.0,70473.0,0.08909929]
[1771153085670,0.07094623,70476.0,70470.0,0.07095117]
[1771153085878,0.07094848,70474.0,70470.0,0.07095198]
[1771153086126,0.23198778,70474.0,70470.0,0.07095198]
[1771153086486,0.07094751,70475.0,70470.0,0.07095198]
[1771153086686,0.07094657,70476.0,70471.0,0.07095062]
[1771153087519,0.07094657,70476.0,70471.0,0.16004991]
[1771153087671,0.0709474,70475.0,70470.0,0.07095198]
[1771153090954,0.07094657,70476.0,70458.0,8.61e-05]
[1771153090955,0.1610393,70476.0,70458.0,8.61e-05]
[1771153091155,0.07095868,70464.0,70459.0,0.07116264]
[1771153091366,0.07108802,70464.0,70459.0,0.0002]
[1771153091559,0.0709595,70463.0,70459.0,0.0002]
[1771153091738,0.07096038,70462.0,70459.0,0.0002]
[1771153092964,0.07096164,70461.0,70459.0,0.0002]
[1771153093167,0.15462126,70459.0,70455.0,0.0002]
[1771153093367,0.15462126,70459.0,70456.0,0.07096582]
[1771153093539,0.22558277,70461.0,70456.0,0.07096582]
[1771153094213,0.00012934,70464.0,70460.0,0.07096224]
[1771153094438,0.00012934,70464.0,70459.0,0.1600619]
[1771153094611,0.07108762,70464.0,70459.0,0.1600619]
[1771153094812,0.07096047,70462.0,70456.0,0.07096612]
[1771153095054,0.07096164,70461.0,70456.0,0.16006541]
[1771153095458,0.07096164,70461.0,70456.0,0.16026541]
[1771153095813,0.07096047,70462.0,70457.0,0.07096523]
[1771153095997,0.07095947,70463.0,70458.0,0.0709642]
[1771153096623,0.07095947,70463.0,70458.0,0.07096412]
[1771153097754,0.07096061,70462.0,70457.0,0.07096523]
[1771153098155,0.07095947,70463.0,70458.0,0.07096384]
[1771153098355,0.07096084,70462.0,70457.0,0.07096523]
[1771153099309,0.00012934,70464.0,70460.0,0.07096185]
[1771153099844,0.07108786,70464.0,70458.0,0.07096404]
[1771153100068,0.07108786,70464.0,70459.0,0.07096316]
[1771153103198,4e-05,70460.0,70459.0,0.07092316]
[1771153104796,4e-05,70460.0,70459.0,0.07112316]
[1771153106890,4e-05,70460.0,70459.0,0.0002]
[1771153107091,4e-05,70460.0,70459.0,0.07116325]
[1771153107487,4e-05,70460.0,70459.0,0.0002]
[1771153107694,4e-05,70460.0,70459.0,0.07116325]
[1771153108742,4e-05,70460.0,70459.0,0.16026254]
[1771153110168,4e-05,70460.0,70459.0,0.07116325]
[1771153112390,4e-05,70460.0,70459.0,0.0002]
[1771153114318,4e-05,70460.0,70456.0,0.02765307]
[1771153114835,4e-05,70460.0,70457.0,0.07096471]
[1771153121468,0.07100276,70460.0,70455.0,0.07116675]
[1771153121665,4e-05,70460.0,70455.0,0.07116675]
[1771153121867,4e-05,70460.0,70456.0,0.07096587]
[1771153122557,0.07096356,70459.0,70455.0,0.0002]
[1771153122768,0.07100396,70460.0,70455.0,0.07116685]
[1771153123544,0.07100396,70460.0,70457.0,0.0002]
[1771153126725,4e-05,70460.0,70457.0,0.0002]
[1771153130737,4e-05,70460.0,70453.0,0.28387707]
[1771153130738,0.07097063,70452.0,70442.0,0.42197241]
[1771153130945,4e-05,70460.0,70443.0,0.15077941]
[1771153131152,0.07096335,70459.0,70453.0,0.07096895]
[1771153132475,0.07096335,70459.0,70456.0,0.0002]
[1771153133246,0.07096335,70459.0,70456.0,5.108e-05]
[1771153135183,0.07096427,70458.0,70456.0,5.108e-05]
[1771153137515,0.00044,70460.0,70452.0,0.01561346]
[1771153137737,0.00044,70460.0,70446.0,0.08909929]
[1771153137738,0.07096886,70454.0,70448.0,0.07117402]
[1771153138997,0.07096886,70454.0,70449.0,0.07097322]
[1771153140810,0.28429302,70460.0,70448.0,0.07117402]
[1771153140811,0.07096492,70458.0,70452.0,0.07096931]
[1771153141008,0.07096492,70458.0,70452.0,0.15991966]
[1771153141230,0.07096539,70457.0,70452.0,0.15991966]
[1771153141441,0.07096539,70457.0,70452.0,0.07082037]
[1771153141643,0.00044,70460.0,70448.0,0.0002]
[1771153141848,0.14960517,70451.0,70443.0,0.070979]